[Event "CCT Chessable Masters Play-In 2025"]
[Site "Online"]
[Date "2025.02.17"]
[Round "5.52"]
[White "Martinez Alcantara, Jose Eduardo"]
[Black "Bilguun, Sumiya"]
[Result "1-0"]
[ECO "B40"]
[WhiteElo "2606"]
[BlackElo "2460"]
[PlyCount "185"]
[EventDate "2025.02.13"]
[EventType "swiss"]
[EventCountry "NET"]
[TimeControl "600"]
[WhiteClock "0:01:15"]

1. e4 {[%emt 0:00:01]} c5 {[%emt 0:00:02]} 2. Nf3 {[%emt 0:00:01]} e6 {[%emt 0:00:03]} 3. c3 {[%emt 0:00:02]} d5 {[%emt 0:00:01]} 4. e5 {[%emt 0:00:00]} d4 {[%emt 0:00:02]} 5. d3 {[%emt 0:00:01]} Nc6 {[%emt 0:00:01]} 6. g3 {[%emt 0:00:01]} Nge7 {[%emt 0:00:02]} 7. Bg2 {[%emt 0:00:00]} Ng6 {[%emt 0:00:01]} 8. Qe2 {[%emt 0:00:00]} Qc7 {[%emt 0:00:02]} 9. O-O {[%emt 0:00:01]} dxc3 {[%emt 0:00:17]} 10. bxc3 {[%emt 0:00:27]} Ngxe5 {[%emt 0:00:12]} 11. Nxe5 {[%emt 0:00:01]} Nxe5 {[%emt 0:00:03]} 12. Bf4 {[%emt 0:00:13]} Bd6 {[%emt 0:00:03]} 13. Nd2 {[%emt 0:00:01]} Ng6 {[%emt 0:00:07]} 14. Bxd6 {[%emt 0:00:08]} Qxd6 {[%emt 0:00:01]} 15. Qe3 {[%emt 0:00:00]} O-O {[%emt 0:00:17]} 16. Ne4 {[%emt 0:00:01]} Qe7 {[%emt 0:00:01]} 17. h4 {[%emt 0:00:18]} f5 {[%emt 0:00:15]} 18. h5 {[%emt 0:00:28]} fxe4 {[%emt 0:00:21]} 19. hxg6 {[%emt 0:00:00]} exd3 {[%emt 0:00:01]} 20. gxh7+ {[%emt 0:00:00]} Kh8 {[%emt 0:00:01]} 21. Qxd3 {[%emt 0:00:01]} e5 {[%emt 0:00:09]} 22. Be4 {[%emt 0:00:15]} Bh3 {[%emt 0:00:07]} 23. Rfe1 {[%emt 0:00:01]} Rad8 {[%emt 0:00:03]} 24. Qe3 {[%emt 0:00:02]} b6 {[%emt 0:00:01]} 25. Rad1 {[%emt 0:00:01]} Rde8 {[%emt 0:00:35]} 26. f3 {[%emt 0:00:12]} Bf5 {[%emt 0:00:05]} 27. Rd5 {[%emt 0:00:16]} Qe6 {[%emt 0:00:21]} 28. Kg2 {[%emt 0:00:35]} Kxh7 {[%emt 0:00:16]} 29. Qd3 {[%emt 0:00:01]} Bxe4 {[%emt 0:00:34]} 30. Rxe4 {[%emt 0:00:00]} Kg8 {[%emt 0:00:05]} 31. c4 {[%emt 0:00:58]} Qf5 {[%emt 0:00:11]} 32. Qe3 {[%emt 0:00:06]} Re6 {[%emt 0:00:12]} 33. Rdxe5 {[%emt 0:01:02]} Rxe5 {[%emt 0:00:03]} 34. Rxe5 {[%emt 0:00:00]} Qc2+ {[%emt 0:00:02]} 35. Qe2 {[%emt 0:00:01]} Qxe2+ {[%emt 0:00:02]} 36. Rxe2 {[%emt 0:00:00]} Rd8 {[%emt 0:00:00]} 37. Kh3 {[%emt 0:00:30]} Rd3 {[%emt 0:00:12]} 38. f4 {[%emt 0:00:07]} Rc3 {[%emt 0:00:06]} 39. Re7 {[%emt 0:00:04]} Rxc4 {[%emt 0:00:42]} 40. Rxa7 {[%emt 0:00:01]} Kh7 {[%emt 0:00:02]} 41. Kg4 {[%emt 0:00:04]} Rc3 {[%emt 0:00:16]} 42. Rc7 {[%emt 0:00:15]} Ra3 {[%emt 0:00:07]} 43. f5 {[%emt 0:00:00]} Kh6 {[%emt 0:00:07]} 44. Rc6+ {[%emt 0:00:02]} Kh7 {[%emt 0:00:01]} 45. Rxb6 {[%emt 0:00:08]} Rxa2 {[%emt 0:00:01]} 46. Kg5 {[%emt 0:00:04]} c4 {[%emt 0:00:12]} 47. Rc6 {[%emt 0:00:03]} Ra3 {[%emt 0:00:25]} 48. g4 {[%emt 0:00:00]} c3 {[%emt 0:00:01]} 49. Rc7 {[%emt 0:00:01]} Rb3 {[%emt 0:00:21]} 50. Kh5 {[%emt 0:00:07]} Rb5 {[%emt 0:00:07]} 51. Kh4 {[%emt 0:00:27]} Kg8 {[%emt 0:01:19]} 52. Kg5 {[%emt 0:00:08]} Rb3 {[%emt 0:00:05]} 53. Rc5 {[%emt 0:00:09]} Kf7 {[%emt 0:00:02]} 54. Kh5 {[%emt 0:00:04]} Rb7 {[%emt 0:00:23]} 55. Rxc3 {[%emt 0:00:09]} g6+ {[%emt 0:00:01]} 56. fxg6+ {[%emt 0:00:00]} Kg7 {[%emt 0:00:01]} 57. Rf3 {[%emt 0:00:03]} Rb1 {[%emt 0:00:04]} 58. Rf7+ {[%emt 0:00:01]} Kg8 {[%emt 0:00:01]} 59. Kg5 {[%emt 0:00:00]} Rc1 {[%emt 0:00:03]} 60. Re7 {[%emt 0:00:03]} Rf1 {[%emt 0:00:03]} 61. Re5 {[%emt 0:00:11]} Kg7 {[%emt 0:00:01]} 62. Rd5 {[%emt 0:00:01]} Re1 {[%emt 0:00:03]} 63. Rd7+ {[%emt 0:00:06]} Kg8 {[%emt 0:00:00]} 64. Rb7 {[%emt 0:00:01]} Rf1 {[%emt 0:00:02]} 65. Ra7 {[%emt 0:00:02]} Rg1 {[%emt 0:00:01]} 66. g7 {[%emt 0:00:01]} Kh7 {[%emt 0:00:05]} 67. Rb7 {[%emt 0:00:10]} Rf1 {[%emt 0:00:02]} 68. g8=Q+ {[%emt 0:00:03]} Kxg8 {[%emt 0:00:01]} 69. Kg6 {[%emt 0:00:00]} Rf8 {[%emt 0:00:02]} 70. g5 {[%emt 0:00:01]} Rc8 {[%emt 0:00:00]} 71. Rb6 {[%emt 0:00:01]} Ra8 {[%emt 0:00:02]} 72. Kf6 {[%emt 0:00:01]} Rf8+ {[%emt 0:00:00]} 73. Kg6 {[%emt 0:00:00]} Ra8 {[%emt 0:00:01]} 74. Kh6 {[%emt 0:00:01]} Rc8 {[%emt 0:00:01]} 75. Rb7 {[%emt 0:00:01]} Rc6+ {[%emt 0:00:02]} 76. Kh5 {[%emt 0:00:03]} Rd6 {[%emt 0:00:02]} 77. Rc7 {[%emt 0:00:01]} Rb6 {[%emt 0:00:02]} 78. Re7 {[%emt 0:00:01]} Ra6 {[%emt 0:00:01]} 79. Rb7 {[%emt 0:00:01]} Rc6 {[%emt 0:00:00]} 80. Rb1 {[%emt 0:00:02]} Ra6 {[%emt 0:00:01]} 81. Rc1 {[%emt 0:00:01]} Rb6 {[%emt 0:00:01]} 82. Ra1 {[%emt 0:00:01]} Rc6 {[%emt 0:00:00]} 83. g6 {[%emt 0:00:01]} Rc2 {[%emt 0:00:03]} 84. Ra8+ {[%emt 0:00:01]} Kg7 {[%emt 0:00:01]} 85. Ra7+ {[%emt 0:00:00]} Kg8 {[%emt 0:00:00]} 86. Rb7 {[%emt 0:00:03]} Rh2+ {[%emt 0:00:02]} 87. Kg5 {[%emt 0:00:01]} Rg2+ {[%emt 0:00:00]} 88. Kh6 {[%emt 0:00:01]} Rh2+ {[%emt 0:00:01]} 89. Kg5 {[%emt 0:00:00]} Rg2+ {[%emt 0:00:00]} 90. Kf5 {[%emt 0:00:00]} Rf2+ {[%emt 0:00:00]} 91. Ke5 {[%emt 0:00:01]} Rg2 {[%emt 0:00:01]} 92. Rb8+ {[%emt 0:00:02]} Kg7 93. Rb6 {[%emt 0:00:00]} 1-0

[Event "CCT Chessable Masters Play-In 2025"]
[Site "Online"]
[Date "2025.02.17"]
[Round "5.53"]
[White "Moroni, Luca Jr"]
[Black "Hakobyan, Aram"]
[Result "0-1"]
[ECO "A30"]
[WhiteElo "2552"]
[BlackElo "2635"]
[PlyCount "106"]
[EventDate "2025.02.13"]
[EventType "swiss"]
[EventCountry "NET"]
[TimeControl "600"]
[WhiteClock "0:00:48"]
[BlackClock "0:01:46"]

1. c4 {[%emt 0:00:01]} Nf6 {[%emt 0:00:21]} 2. Nc3 {[%emt 0:00:05]} c5 {[%emt 0:00:04]} 3. Nf3 {[%emt 0:00:03]} b6 {[%emt 0:00:01]} 4. g3 {[%emt 0:00:01]} Bb7 {[%emt 0:00:01]} 5. Bg2 {[%emt 0:00:00]} g6 {[%emt 0:00:00]} 6. d4 {[%emt 0:00:09]} cxd4 {[%emt 0:00:02]} 7. Qxd4 {[%emt 0:00:00]} Bg7 {[%emt 0:00:00]} 8. Bg5 {[%emt 0:00:04]} d6 {[%emt 0:00:04]} 9. O-O {[%emt 0:00:05]} Nbd7 {[%emt 0:00:02]} 10. Rad1 {[%emt 0:00:12]} Rc8 {[%emt 0:00:04]} 11. b3 {[%emt 0:00:05]} h6 {[%emt 0:00:05]} 12. Bc1 {[%emt 0:00:04]} O-O {[%emt 0:00:08]} 13. Qd2 {[%emt 0:00:03]} Nc5 {[%emt 0:00:06]} 14. Bb2 {[%emt 0:00:04]} a6 {[%emt 0:00:10]} 15. Nd5 {[%emt 0:00:32]} Bxd5 {[%emt 0:00:25]} 16. cxd5 {[%emt 0:00:23]} Nfe4 {[%emt 0:00:33]} 17. Qc2 {[%emt 0:00:05]} Nd7 {[%emt 0:00:35]} 18. Qxe4 {[%emt 0:00:17]} Bxb2 {[%emt 0:00:02]} 19. e3 {[%emt 0:00:13]} b5 {[%emt 0:00:09]} 20. Nd4 {[%emt 0:00:05]} Bxd4 {[%emt 0:00:02]} 21. exd4 {[%emt 0:00:00]} Nf6 {[%emt 0:00:03]} 22. Qe3 {[%emt 0:00:03]} Kg7 {[%emt 0:00:05]} 23. Rc1 {[%emt 0:00:03]} Qd7 {[%emt 0:00:07]} 24. Qd2 {[%emt 0:00:14]} Rxc1 {[%emt 0:00:03]} 25. Rxc1 {[%emt 0:00:02]} Rc8 {[%emt 0:00:00]} 26. Rc6 {[%emt 0:00:08]} Qf5 {[%emt 0:00:27]} 27. h3 {[%emt 0:00:13]} Ra8 {[%emt 0:00:25]} 28. g4 {[%emt 0:00:04]} Qg5 {[%emt 0:00:09]} 29. f4 {[%emt 0:00:20]} Qh4 {[%emt 0:00:02]} 30. Qf2 {[%emt 0:00:00]} Qxf2+ {[%emt 0:00:03]} 31. Kxf2 {[%emt 0:00:00]} g5 {[%emt 0:00:19]} 32. fxg5 {[%emt 0:00:22]} hxg5 {[%emt 0:00:00]} 33. Ke3 {[%emt 0:00:00]} b4 {[%emt 0:00:04]} 34. Kd3 {[%emt 0:00:02]} Kf8 {[%emt 0:00:10]} 35. Kc4 {[%emt 0:00:03]} a5 {[%emt 0:00:01]} 36. Kb5 {[%emt 0:00:02]} Ne8 {[%emt 0:01:36]} 37. Bf1 {[%emt 0:00:14]} e6 {[%emt 0:00:05]} 38. Bc4 {[%emt 0:00:14]} Ke7 {[%emt 0:00:02]} 39. Ka4 {[%emt 0:00:15]} e5 {[%emt 0:00:35]} 40. dxe5 {[%emt 0:01:28]} dxe5 {[%emt 0:00:00]} 41. Ra6 {[%emt 0:00:02]} Rxa6 {[%emt 0:00:01]} 42. Bxa6 {[%emt 0:00:01]} Kd6 {[%emt 0:00:01]} 43. Kxa5 {[%emt 0:00:10]} Kc5 {[%emt 0:00:02]} 44. Ka4 {[%emt 0:00:28]} Nf6 {[%emt 0:00:23]} 45. d6 {[%emt 0:00:13]} Nd5 {[%emt 0:00:08]} 46. Bc4 {[%emt 0:00:45]} Nb6+ {[%emt 0:00:02]} 47. Ka5 {[%emt 0:00:01]} e4 {[%emt 0:00:00]} 48. Ka6 {[%emt 0:00:42]} e3 {[%emt 0:00:15]} 49. Kb7 {[%emt 0:00:13]} Nxc4 {[%emt 0:00:07]} 50. d7 {[%emt 0:00:12]} Na5+ {[%emt 0:00:01]} 51. Kc7 {[%emt 0:00:02]} Nc6 {[%emt 0:00:00]} 52. a3 {[%emt 0:00:01]} e2 {[%emt 0:00:03]} 53. axb4+ {[%emt 0:00:04]} Kb5 {[%emt 0:00:01]} 0-1

[Event "CCT Chessable Masters Play-In 2025"]
[Site "Online"]
[Date "2025.02.17"]
[Round "5.54"]
[White "Dominguez Perez, Leinier"]
[Black "Atabayev, Saparmyrat"]
[Result "0-1"]
[ECO "B92"]
[WhiteElo "2607"]
[BlackElo "2516"]
[PlyCount "162"]
[EventDate "2025.02.13"]
[EventType "swiss"]
[EventCountry "NET"]
[TimeControl "600"]
[BlackClock "0:01:03"]

1. e4 {[%emt 0:00:23]} c5 {[%emt 0:00:06]} 2. Nf3 {[%emt 0:00:01]} d6 {[%emt 0:00:02]} 3. d4 {[%emt 0:00:00]} cxd4 {[%emt 0:00:01]} 4. Nxd4 {[%emt 0:00:01]} Nf6 {[%emt 0:00:00]} 5. Nc3 {[%emt 0:00:00]} a6 {[%emt 0:00:00]} 6. Be2 {[%emt 0:00:01]} e5 {[%emt 0:00:01]} 7. Nb3 {[%emt 0:00:00]} Be7 {[%emt 0:00:00]} 8. Be3 {[%emt 0:00:01]} O-O {[%emt 0:00:02]} 9. g4 {[%emt 0:00:02]} Be6 {[%emt 0:00:02]} 10. g5 {[%emt 0:00:03]} Nfd7 {[%emt 0:00:01]} 11. Qd2 {[%emt 0:00:03]} Nb6 {[%emt 0:00:04]} 12. O-O-O {[%emt 0:00:12]} N8d7 {[%emt 0:00:01]} 13. h4 {[%emt 0:00:06]} Rc8 {[%emt 0:00:02]} 14. Kb1 {[%emt 0:00:08]} Nc4 {[%emt 0:00:15]} 15. Bxc4 {[%emt 0:00:02]} Rxc4 {[%emt 0:00:01]} 16. h5 {[%emt 0:00:21]} Qc7 {[%emt 0:00:04]} 17. Nd5 {[%emt 0:01:00]} Bxd5 {[%emt 0:00:02]} 18. exd5 {[%emt 0:00:00]} Rg4 {[%emt 0:00:56]} 19. f3 {[%emt 0:00:09]} Rc4 {[%emt 0:00:05]} 20. Qd3 {[%emt 0:00:15]} e4 {[%emt 0:00:23]} 21. fxe4 {[%emt 0:00:01]} Ne5 {[%emt 0:00:01]} 22. Qe2 {[%emt 0:00:09]} Rxe4 {[%emt 0:00:01]} 23. Rd4 {[%emt 0:00:31]} Rxd4 {[%emt 0:00:19]} 24. Nxd4 {[%emt 0:00:00]} Qc4 {[%emt 0:00:08]} 25. Qg2 {[%emt 0:00:12]} Rc8 {[%emt 0:00:03]} 26. Nf5 {[%emt 0:00:43]} Bf8 {[%emt 0:00:03]} 27. Bd4 {[%emt 0:00:00]} Kh8 {[%emt 0:01:23]} 28. b3 {[%emt 0:00:17]} Qc7 {[%emt 0:00:04]} 29. g6 {[%emt 0:00:48]} h6 {[%emt 0:00:05]} 30. Rg1 {[%emt 0:00:47]} f6 {[%emt 0:00:10]} 31. Bxe5 {[%emt 0:00:23]} dxe5 {[%emt 0:00:01]} 32. Qe4 {[%emt 0:00:30]} Ba3 {[%emt 0:00:05]} 33. c4 {[%emt 0:00:12]} Qc5 {[%emt 0:00:01]} 34. Rg2 {[%emt 0:00:55]} b5 {[%emt 0:00:01]} 35. d6 {[%emt 0:00:09]} Qa7 {[%emt 0:00:53]} 36. Qd5 {[%emt 0:00:07]} bxc4 {[%emt 0:00:10]} 37. d7 {[%emt 0:00:09]} Rd8 {[%emt 0:00:01]} 38. Nxh6 {[%emt 0:00:01]} Qxd7 {[%emt 0:00:05]} 39. Qxd7 {[%emt 0:00:23]} Rxd7 {[%emt 0:00:01]} 40. Nf5 {[%emt 0:00:01]} Rd1+ {[%emt 0:00:13]} 41. Kc2 {[%emt 0:00:02]} Rc1+ {[%emt 0:00:00]} 42. Kd2 {[%emt 0:00:00]} c3+ {[%emt 0:00:04]} 43. Kd3 {[%emt 0:00:01]} Rf1 {[%emt 0:00:25]} 44. Ne3 {[%emt 0:00:02]} Rf3 {[%emt 0:00:01]} 45. Ke4 {[%emt 0:00:01]} Rh3 {[%emt 0:00:05]} 46. Rc2 {[%emt 0:00:02]} Bb2 {[%emt 0:00:11]} 47. Nd1 {[%emt 0:00:01]} Rh4+ {[%emt 0:00:05]} 48. Ke3 {[%emt 0:00:01]} Rh3+ {[%emt 0:00:01]} 49. Ke4 {[%emt 0:00:01]} Ba1 {[%emt 0:00:10]} 50. Rc1 {[%emt 0:00:02]} Rh4+ {[%emt 0:00:00]} 51. Kf5 {[%emt 0:00:03]} Rxh5+ {[%emt 0:00:03]} 52. Ke6 {[%emt 0:00:01]} Rh1 {[%emt 0:00:06]} 53. Rxa1 {[%emt 0:00:02]} Kg8 {[%emt 0:00:37]} 54. Rc1 {[%emt 0:00:02]} Rg1 {[%emt 0:00:01]} 55. Rxc3 {[%emt 0:00:03]} Rxg6 {[%emt 0:00:00]} 56. Ne3 {[%emt 0:00:00]} Rg3 {[%emt 0:00:05]} 57. Rc8+ {[%emt 0:00:01]} Kh7 {[%emt 0:00:01]} 58. Nf5 {[%emt 0:00:00]} Rg2 {[%emt 0:00:00]} 59. Kf7 {[%emt 0:00:01]} g6 {[%emt 0:00:05]} 60. Ne3 {[%emt 0:00:03]} Rg3 {[%emt 0:00:03]} 61. Nd5 {[%emt 0:00:03]} f5 {[%emt 0:00:03]} 62. Rc1 {[%emt 0:00:05]} Kh6 {[%emt 0:00:04]} 63. Kf6 {[%emt 0:00:00]} Kh5 {[%emt 0:00:02]} 64. Kxe5 {[%emt 0:00:01]} Kg5 {[%emt 0:00:04]} 65. b4 {[%emt 0:00:03]} Rg2 {[%emt 0:00:03]} 66. a4 {[%emt 0:00:01]} Re2+ {[%emt 0:00:00]} 67. Kd4 {[%emt 0:00:01]} Ra2 {[%emt 0:00:05]} 68. a5 {[%emt 0:00:01]} Rg2 {[%emt 0:00:13]} 69. Rc6 {[%emt 0:00:00]} f4 {[%emt 0:00:04]} 70. Rxa6 {[%emt 0:00:01]} f3 {[%emt 0:00:01]} 71. Ra8 {[%emt 0:00:01]} Rd2+ {[%emt 0:00:02]} 72. Kc5 {[%emt 0:00:01]} Kg4 {[%emt 0:00:05]} 73. Rf8 {[%emt 0:00:00]} Ra2 {[%emt 0:00:01]} 74. b5 {[%emt 0:00:01]} Rxa5 {[%emt 0:00:01]} 75. Kc6 {[%emt 0:00:00]} Ra2 {[%emt 0:00:03]} 76. b6 {[%emt 0:00:01]} Rc2+ {[%emt 0:00:00]} 77. Kd6 {[%emt 0:00:00]} Rb2 {[%emt 0:00:00]} 78. Kc7 {[%emt 0:00:01]} Rc2+ {[%emt 0:00:03]} 79. Kd6 {[%emt 0:00:00]} Rb2 {[%emt 0:00:03]} 80. Kc7 {[%emt 0:00:01]} Kg3 {[%emt 0:00:01]} 81. Kc6 f2 {[%emt 0:00:00]} 0-1

[Event "CCT Chessable Masters Play-In 2025"]
[Site "Online"]
[Date "2025.02.17"]
[Round "5.55"]
[White "Banusz, Tamas"]
[Black "Blohberger, Felix"]
[Result "1-0"]
[ECO "D02"]
[WhiteElo "2582"]
[BlackElo "2532"]
[PlyCount "123"]
[EventDate "2025.02.13"]
[EventType "swiss"]
[EventCountry "NET"]
[TimeControl "600"]
[WhiteClock "0:00:52"]

1. d4 {[%emt 0:00:01]} d5 {[%emt 0:00:06]} 2. Nf3 {[%emt 0:00:01]} Nf6 {[%emt 0:00:01]} 3. g3 {[%emt 0:00:00]} g6 {[%emt 0:00:03]} 4. Bg2 {[%emt 0:00:04]} Bg7 {[%emt 0:00:02]} 5. O-O {[%emt 0:00:07]} O-O {[%emt 0:00:02]} 6. c3 {[%emt 0:00:01]} a5 {[%emt 0:00:03]} 7. a4 {[%emt 0:00:03]} c6 {[%emt 0:00:07]} 8. Nbd2 {[%emt 0:00:01]} Nbd7 {[%emt 0:00:01]} 9. Re1 {[%emt 0:00:03]} c5 {[%emt 0:00:00]} 10. e3 {[%emt 0:00:06]} b6 {[%emt 0:00:06]} 11. b3 {[%emt 0:00:01]} Bb7 {[%emt 0:00:04]} 12. Bb2 {[%emt 0:00:01]} Rc8 {[%emt 0:00:02]} 13. Nb1 {[%emt 0:00:00]} Ne4 {[%emt 0:00:27]} 14. Na3 {[%emt 0:00:09]} Nd6 {[%emt 0:00:18]} 15. Qe2 {[%emt 0:00:16]} e5 {[%emt 0:00:18]} 16. dxe5 {[%emt 0:00:02]} Nxe5 {[%emt 0:00:01]} 17. Nxe5 {[%emt 0:00:00]} Bxe5 {[%emt 0:00:02]} 18. Rad1 {[%emt 0:00:02]} Qf6 {[%emt 0:00:47]} 19. Bxd5 {[%emt 0:00:11]} Bxc3 {[%emt 0:00:33]} 20. Bxb7 {[%emt 0:00:17]} Nxb7 {[%emt 0:00:06]} 21. Bxc3 {[%emt 0:00:05]} Qxc3 {[%emt 0:00:00]} 22. Rd3 {[%emt 0:00:22]} Qf6 {[%emt 0:00:12]} 23. Nc4 {[%emt 0:00:02]} Rfd8 {[%emt 0:00:04]} 24. Red1 {[%emt 0:00:04]} Rxd3 {[%emt 0:00:16]} 25. Rxd3 {[%emt 0:00:00]} Rd8 {[%emt 0:00:00]} 26. Qd1 {[%emt 0:00:34]} Rxd3 {[%emt 0:00:17]} 27. Qxd3 {[%emt 0:00:00]} Qc6 {[%emt 0:00:03]} 28. e4 {[%emt 0:00:38]} b5 {[%emt 0:01:07]} 29. Ne5 {[%emt 0:00:36]} c4 {[%emt 0:00:11]} 30. bxc4 {[%emt 0:00:55]} Qe6 {[%emt 0:01:52]} 31. Qd4 {[%emt 0:00:04]} bxa4 {[%emt 0:00:08]} 32. c5 {[%emt 0:00:01]} a3 {[%emt 0:00:21]} 33. c6 {[%emt 0:00:01]} Nd6 {[%emt 0:00:07]} 34. c7 {[%emt 0:00:01]} a2 {[%emt 0:00:01]} 35. Kg2 {[%emt 0:00:18]} f6 {[%emt 0:00:12]} 36. Qxd6 {[%emt 0:00:26]} Qxd6 {[%emt 0:00:07]} 37. c8=Q+ {[%emt 0:00:01]} Kg7 {[%emt 0:00:34]} 38. Qb7+ {[%emt 0:00:01]} Kg8 {[%emt 0:00:05]} 39. Qb3+ {[%emt 0:00:24]} Kg7 {[%emt 0:00:03]} 40. Nc4 {[%emt 0:00:07]} Qd4 {[%emt 0:00:16]} 41. Qxa2 {[%emt 0:00:14]} Qxe4+ {[%emt 0:00:06]} 42. f3 {[%emt 0:00:00]} Qd5 {[%emt 0:00:00]} 43. Qa4 {[%emt 0:00:04]} Qd3 {[%emt 0:00:06]} 44. Kf2 {[%emt 0:00:19]} Qd4+ {[%emt 0:00:01]} 45. Ke2 {[%emt 0:00:02]} Qg1 {[%emt 0:00:01]} 46. Qd7+ {[%emt 0:00:04]} Kh6 {[%emt 0:00:09]} 47. Qh3+ {[%emt 0:00:15]} Kg7 {[%emt 0:00:01]} 48. Ne3 {[%emt 0:00:00]} h5 {[%emt 0:00:02]} 49. Nf1 {[%emt 0:00:52]} Kh6 {[%emt 0:00:07]} 50. g4 {[%emt 0:00:23]} a4 {[%emt 0:00:02]} 51. gxh5 {[%emt 0:00:01]} gxh5 {[%emt 0:00:01]} 52. Qh4 {[%emt 0:00:04]} Kg6 {[%emt 0:00:05]} 53. Qxa4 {[%emt 0:00:17]} Qg2+ {[%emt 0:00:01]} 54. Ke1 {[%emt 0:00:00]} Qxf3 {[%emt 0:00:00]} 55. Qc2+ {[%emt 0:00:03]} Kg5 {[%emt 0:00:01]} 56. Qf2 {[%emt 0:00:06]} Kf4 {[%emt 0:00:06]} 57. Qd4+ {[%emt 0:00:06]} Qe4+ {[%emt 0:00:01]} 58. Qxe4+ {[%emt 0:00:00]} Kxe4 {[%emt 0:00:00]} 59. Kf2 {[%emt 0:00:05]} Kf4 {[%emt 0:00:00]} 60. Ne3 {[%emt 0:00:04]} h4 {[%emt 0:00:02]} 61. h3 {[%emt 0:00:03]} f5 {[%emt 0:00:03]} 62. Ng2+ {[%emt 0:00:00]} 1-0

[Event "CCT Chessable Masters Play-In 2025"]
[Site "Online"]
[Date "2025.02.17"]
[Round "5.56"]
[White "Gokerkan, Cem Kaan"]
[Black "Donchenko, Alexander"]
[Result "1-0"]
[ECO "B22"]
[WhiteElo "2473"]
[BlackElo "2632"]
[PlyCount "61"]
[EventDate "2025.02.13"]
[EventType "swiss"]
[EventCountry "NET"]
[TimeControl "600"]
[WhiteClock "0:00:47"]
[BlackClock "0:01:28"]

1. e4 {[%emt 0:00:09]} c5 {[%emt 0:00:02]} 2. c3 {[%emt 0:00:03]} Nf6 {[%emt 0:00:01]} 3. e5 {[%emt 0:00:00]} Nd5 {[%emt 0:00:01]} 4. d4 {[%emt 0:00:01]} cxd4 {[%emt 0:00:00]} 5. Bc4 {[%emt 0:00:00]} Nb6 {[%emt 0:00:01]} 6. Bb3 {[%emt 0:00:01]} d5 {[%emt 0:00:02]} 7. cxd4 {[%emt 0:00:01]} Bf5 {[%emt 0:00:02]} 8. Ne2 {[%emt 0:00:31]} e6 {[%emt 0:00:02]} 9. Nbc3 {[%emt 0:00:10]} Nc6 {[%emt 0:00:03]} 10. Ng3 {[%emt 0:00:03]} Bg6 {[%emt 0:00:02]} 11. h4 {[%emt 0:00:06]} h6 {[%emt 0:00:10]} 12. h5 {[%emt 0:00:07]} Bh7 {[%emt 0:00:01]} 13. Qg4 {[%emt 0:00:11]} Nc4 {[%emt 0:00:12]} 14. O-O {[%emt 0:00:07]} Qb6 {[%emt 0:00:12]} 15. Be3 {[%emt 0:00:40]} Nxb2 {[%emt 0:00:16]} 16. Rab1 {[%emt 0:01:31]} Bxb1 {[%emt 0:00:04]} 17. Rxb1 {[%emt 0:00:00]} Nd3 {[%emt 0:01:08]} 18. Bxd5 {[%emt 0:00:52]} Qa5 {[%emt 0:01:11]} 19. Rxb7 {[%emt 0:02:37]} Qxc3 {[%emt 0:00:10]} 20. Bxe6 {[%emt 0:00:06]} Be7 {[%emt 0:01:23]} 21. Qxg7 {[%emt 0:00:27]} Rf8 {[%emt 0:01:04]} 22. Nf5 {[%emt 0:00:03]} Rb8 {[%emt 0:01:54]} 23. Rxe7+ {[%emt 0:00:27]} Nxe7 {[%emt 0:00:01]} 24. Nd6+ {[%emt 0:00:00]} Kd8 {[%emt 0:00:00]} 25. Qxf8+ {[%emt 0:00:01]} Kc7 {[%emt 0:00:01]} 26. Qxe7+ {[%emt 0:00:00]} Kb6 {[%emt 0:00:01]} 27. d5+ {[%emt 0:00:25]} Nc5 {[%emt 0:00:02]} 28. Nc8+ {[%emt 0:00:15]} Kb5 {[%emt 0:00:10]} 29. Nxa7+ {[%emt 0:00:01]} Kb6 {[%emt 0:00:04]} 30. Qd6+ {[%emt 0:00:05]} Ka5 {[%emt 0:00:12]} 31. Qxb8 {[%emt 0:00:13]} 1-0